fUSD/lending_fUSD_20251102
["ID","MTS","AMOUNT","RATE_DAILY","PERIOD"]
[392903697,1762119580644,500.0,0.00030136,120]
[392903698,1762119580962,500.0,0.00030136,120]
[392903699,1762119581252,500.0,0.00030136,120]
[392903700,1762119585120,500.0,0.00030136,120]
[392903701,1762119585794,500.0,0.00030136,120]
[392903702,1762119586026,171.78089762,0.00030136,120]
[392903703,1762119586956,500.0,0.00030136,120]
[392903704,1762119587240,246.2178465,0.00030136,120]
[392903705,1762119587982,615.05,0.00030136,120]
[392903706,1762119588073,500.0,0.00030136,120]
[392903707,1762119588227,500.0,0.00030136,120]
[392903708,1762119589405,535.18041235,0.00030136,120]
[392903709,1762119591166,500.0,0.00030136,120]
[392903710,1762119591441,557.51,0.00030136,120]
[392903711,1762119593180,608.15,0.00030136,120]
[392903712,1762119594943,500.0,0.00030136,120]
[392903713,1762119596785,572.84,0.00030136,120]
[392903714,1762119597661,500.0,0.00030136,120]
[392903715,1762119598555,500.0,0.00030136,120]
[392903716,1762119600045,500.0,0.00030136,120]
[392903717,1762119600888,500.0,0.00030136,120]
[392903718,1762119601076,500.0,0.00030136,120]
[392903719,1762119603190,640.85,0.00030136,120]
[392903720,1762119604263,500.0,0.00030136,120]
[392903721,1762119606708,500.0,0.00030136,120]
[392903722,1762119607129,500.0,0.00030136,120]
[392903723,1762119607979,628.87,0.00030136,120]
[392903725,1762119609318,500.0,0.00030136,120]
[392903726,1762119610279,966.67,0.00030136,120]
[392903727,1762119610775,500.0,0.00030136,120]
[392903728,1762119611722,418.22795042,0.00030136,120]
[392903729,1762119611802,500.0,0.00030136,120]
[392903730,1762119612294,500.0,0.00030136,120]
[392903731,1762119613212,500.0,0.00030136,120]
[392903732,1762119613331,500.0,0.00030136,120]
[392903733,1762119613784,500.0,0.00030136,120]
[392903734,1762119613969,500.0,0.00030136,120]
[392903735,1762119614043,500.0,0.00030136,120]
[392903738,1762119616841,398.30280056,0.00030136,120]
[392903739,1762119617271,500.0,0.00030136,120]
[392903740,1762119617408,500.0,0.00030136,120]
[392903741,1762119617543,500.0,0.00030136,120]
[392903742,1762119619285,982.51,0.00030136,120]
[392903743,1762119619453,353.5857668,0.00030136,120]
[392903744,1762119619527,500.0,0.00030136,120]
[392903745,1762119621596,500.0,0.00030136,120]
[392903746,1762119622029,500.0,0.00030136,120]
[392903748,1762119623552,500.0,0.00030136,120]
[392903749,1762119623662,500.0,0.00030136,120]
[392903750,1762119624223,500.0,0.00030136,120]
[392903751,1762119624860,500.0,0.00030136,120]
[392903752,1762119624971,500.0,0.00030136,120]
[392903753,1762119625636,500.0,0.00030136,120]
[392903754,1762119626261,633.49,0.00030136,120]
[392903755,1762119627256,610.26,0.00030136,120]
[392903756,1762119627488,763.44,0.00030136,120]
[392903757,1762119629442,500.0,0.00030136,120]
[392903758,1762119630209,500.0,0.00030136,120]
[392903759,1762119631506,500.0,0.00030136,120]
[392903760,1762119632470,643.67,0.00030136,120]
[392903761,1762119632837,576.98,0.00030136,120]
[392903762,1762119633158,544.28,0.00030136,120]
[392903763,1762119634391,500.0,0.00030136,120]
[392903764,1762119635006,500.0,0.00030136,120]
[392903765,1762119635530,500.0,0.00030136,120]
[392903766,1762119638159,563.41,0.00030136,120]
[392903767,1762119639190,612.91073855,0.00030136,120]
[392903768,1762119639823,249.96241069,0.00030136,120]
[392903769,1762119639898,500.0,0.00030136,120]
[392903770,1762119641034,500.0,0.00030136,120]
[392903771,1762119641416,503.54,0.00030136,120]
[392903772,1762119642634,733.08,0.00030136,120]
[392903773,1762119644701,500.0,0.00030136,120]
[392903774,1762119644859,598.59009279,0.00030136,120]
[392903775,1762119644932,500.0,0.00030136,120]
[392903776,1762119645806,500.0,0.00030136,120]
[392903777,1762119646902,544.24,0.00030136,120]
[392903778,1762119647717,500.0,0.00030136,120]
[392903779,1762119647800,485.89116248,0.00030136,120]
[392903780,1762119647878,500.0,0.00030136,120]
[392903781,1762119647974,651.51,0.00030136,120]
[392903782,1762119649421,500.0,0.00030136,120]
[392903783,1762119649830,172.6981653,0.00030136,120]
[392903785,1762119651754,500.0,0.00030136,120]
[392903786,1762119652062,571.98,0.00030136,120]
[392903787,1762119652171,500.0,0.00030136,120]
[392903788,1762119653601,500.0,0.00030136,120]
[392903789,1762119653915,500.0,0.00030136,120]
[392903790,1762119653992,500.0,0.00030136,120]
[392903791,1762119654923,500.0,0.00030136,120]
[392903792,1762119655931,500.0,0.00030136,120]
[392903793,1762119656011,500.0,0.00030136,120]
[392903794,1762119657403,500.0,0.00030136,120]
[392903795,1762119657706,500.0,0.00030136,120]
[392903796,1762119659781,500.0,0.00030136,120]
[392903797,1762119659850,500.0,0.00030136,120]
[392903798,1762119660149,500.0,0.00030136,120]
[392903799,1762119660512,500.0,0.00030136,120]
[392903800,1762119660968,500.0,0.00030136,120]
[392903801,1762119661335,592.68,0.00030136,120]
[392903802,1762119662171,1172.48,0.00030136,120]
[392903803,1762119663036,500.0,0.00030136,120]
[392903804,1762119663248,500.0,0.00030136,120]
[392903805,1762119663330,500.0,0.00030136,120]
[392903806,1762119664229,500.0,0.00030136,120]
[392903807,1762119666260,500.0,0.00030136,120]
[392903808,1762119666419,500.0,0.00030136,120]
[392903809,1762119667881,500.0,0.00030136,120]
[392903810,1762119668532,583.5,0.00030136,120]
[392903811,1762119669787,293.69516661,0.00030136,120]
[392903812,1762119670336,500.0,0.00030136,120]
[392903813,1762119670497,500.0,0.00030136,120]
[392903814,1762119671631,500.0,0.00030136,120]
[392903815,1762119671701,500.0,0.00030136,120]
[392903816,1762119672037,500.0,0.00030136,120]
[392903817,1762119672550,500.0,0.00030136,120]
[392903818,1762119673432,500.0,0.00030136,120]
[392903819,1762119676126,500.0,0.00030136,120]
[392903820,1762119678155,500.0,0.00030136,120]
[392903821,1762119678325,500.0,0.00030136,120]
[392903822,1762119680259,732.48,0.00030136,120]
[392903823,1762119680360,613.76,0.00030136,120]
[392903824,1762119682129,672.68,0.00030136,120]
[392903825,1762119682212,500.0,0.00030136,120]
[392903826,1762119682934,500.0,0.00030136,120]
[392903827,1762119683116,597.95,0.00030136,120]
[392903828,1762119683219,770.84,0.00030136,120]
[392903829,1762119685310,607.55,0.00030136,120]
[392903830,1762119686277,161.32029362,0.00030136,120]
[392903831,1762119687921,500.0,0.00030136,120]
[392903832,1762119688311,500.0,0.00030136,120]
[392903833,1762119688858,500.0,0.00030136,120]
[392903836,1762119691788,604.17,0.00030136,120]
[392903837,1762119694579,500.0,0.00030136,120]
[392903838,1762119695086,500.0,0.00030136,120]
[392903839,1762119695400,500.0,0.00030136,120]
[392903840,1762119695490,500.0,0.00030136,120]
[392903841,1762119696129,500.0,0.00030136,120]
[392903842,1762119697368,574.77,0.00030136,120]
[392903843,1762119698569,500.0,0.00030136,120]
[392903844,1762119698933,500.0,0.00030136,120]
[392903845,1762119700504,622.99,0.00030136,120]
[392903846,1762119700604,500.0,0.00030136,120]
[392903847,1762119700698,418.13095086,0.00030136,120]
[392903848,1762119701149,500.0,0.00030136,120]
[392903849,1762119701659,621.01,0.00030136,120]
[392903850,1762119701753,500.0,0.00030136,120]
[392903851,1762119703373,500.0,0.00030136,120]
[392903853,1762119706716,500.0,0.00030136,120]
[392903854,1762119708119,500.0,0.00030136,120]
[392903855,1762119709300,711.29,0.00030136,120]
[392903856,1762119709396,500.0,0.00030136,120]
[392903857,1762119710404,500.0,0.00030136,120]
[392903858,1762119710925,907.92,0.00030136,120]
[392903859,1762119711796,500.0,0.00030136,120]
[392903860,1762119712500,500.0,0.00030136,120]
[392903861,1762119714148,500.0,0.00030136,120]
[392903862,1762119714370,500.0,0.00030136,120]
[392903863,1762119716123,500.0,0.00030136,120]
[392903864,1762119716702,500.0,0.00030136,120]
[392903865,1762119717102,500.0,0.00030136,120]
[392903866,1762119717404,500.0,0.00030136,120]
[392903867,1762119718170,615.7,0.00030136,120]
[392903868,1762119719275,511.22,0.00030136,120]
[392903869,1762119719359,615.66,0.00030136,120]
[392903870,1762119720307,585.28,0.00030136,120]
[392903871,1762119722427,500.0,0.00030136,120]
[392903872,1762119724772,1317.95,0.00030136,120]
[392903873,1762119724999,500.0,0.00030136,120]
[392903874,1762119725265,442.43964703,0.00030136,120]
[392903875,1762119725346,500.0,0.00030136,120]
[392903876,1762119728473,500.0,0.00030136,120]
[392903877,1762119728552,614.52,0.00030136,120]
[392903878,1762119728726,500.0,0.00030136,120]
[392903879,1762119728921,558.24727436,0.00030136,120]
[392903880,1762119729605,604.06,0.00030136,120]
[392903881,1762119730221,483.83172845,0.00030136,120]
[392903882,1762119730789,500.0,0.00030136,120]
[392903883,1762119731260,500.0,0.00030136,120]
[392903884,1762119732455,500.0,0.00030136,120]
[392903885,1762119732534,553.48,0.00030136,120]
[392903886,1762119734160,500.0,0.00030136,120]
[392903887,1762119736333,500.0,0.00030136,120]
[392903888,1762119737029,500.0,0.00030136,120]
[392903889,1762119738160,236.3546564,0.00030136,120]
[392903890,1762119739662,500.0,0.00030136,120]
[392903891,1762119740256,500.0,0.00030136,120]
[392903892,1762119741707,500.0,0.00030136,120]
[392903893,1762119742416,500.0,0.00030136,120]
[392903894,1762119742486,500.0,0.00030136,120]
[392903895,1762119742852,635.38,0.00030136,120]
[392903896,1762119742945,500.0,0.00030136,120]
[392903897,1762119743751,500.0,0.00030136,120]
[392903898,1762119744483,500.0,0.00030136,120]
[392903899,1762119745201,1000.0,0.00030136,120]
[392903900,1762119745521,500.0,0.00030136,120]
[392903901,1762119746156,500.0,0.00030136,120]
[392903904,1762119747917,500.0,0.00030136,120]
[392903905,1762119748068,500.0,0.00030136,120]
[392903906,1762119748376,508.46,0.00030136,120]
[392903907,1762119749080,743.99,0.00030136,120]
[392903908,1762119750397,594.46,0.00030136,120]
[392903909,1762119750469,633.35,0.00030136,120]
[392903910,1762119750630,500.0,0.00030136,120]
[392903911,1762119751488,500.0,0.00030136,120]
[392903912,1762119751561,500.0,0.00030136,120]
[392903913,1762119754346,358.19090475,0.00030136,120]
[392903914,1762119754912,500.0,0.00030136,120]
[392903915,1762119756402,608.28,0.00030136,120]
[392903916,1762119756474,277.35018753,0.00030136,120]
[392903917,1762119757316,500.0,0.00030136,120]
[392903918,1762119757416,500.0,0.00030136,120]
[392903919,1762119758255,500.0,0.00030136,120]
[392903920,1762119758898,628.41,0.00030136,120]
[392903921,1762119759088,500.0,0.00030136,120]
[392903922,1762119759942,500.0,0.00030136,120]
[392903923,1762119761467,500.0,0.00030136,120]
[392903924,1762119761850,587.82,0.00030136,120]
[392903925,1762119767421,569.29,0.00030136,120]
[392903926,1762119767495,500.0,0.00030136,120]
[392903927,1762119767802,441.69574441,0.00030136,120]
[392903928,1762119769250,500.0,0.00030136,120]
[392903929,1762119769481,532.19526661,0.00030136,120]
[392903930,1762119769588,500.0,0.00030136,120]
[392903931,1762119770126,500.0,0.00030136,120]
[392903932,1762119770189,580.9876646,0.00030136,120]
[392903933,1762119771387,500.0,0.00030136,120]
[392903934,1762119773666,500.0,0.00030136,120]
[392903935,1762119774066,500.0,0.00030136,120]
[392903936,1762119774165,500.0,0.00030136,120]
[392903937,1762119774540,500.0,0.00030136,120]
[392903938,1762119776933,500.0,0.00030136,120]
[392903939,1762119777350,502.25,0.00030136,120]
[392903940,1762119778228,500.0,0.00030136,120]
[392903941,1762119779401,500.0,0.00030136,120]
[392903942,1762119779471,500.0,0.00030136,120]
[392903943,1762119779657,500.0,0.00030136,120]
[392903944,1762119781629,500.0,0.00030136,120]
[392903945,1762119781978,500.0,0.00030136,120]
[392903946,1762119784714,500.0,0.00030136,120]
[392903947,1762119786125,300.0,0.00030136,120]
[392903948,1762119786980,500.0,0.00030136,120]
[392903949,1762119790958,500.0,0.00030136,120]
[392903950,1762119791266,500.0,0.00030136,120]
[392903951,1762119791920,500.0,0.00030136,120]
[392903952,1762119794185,500.0,0.00030136,120]
[392903953,1762119795047,286.41432768,0.00030136,120]
[392903954,1762119795610,500.0,0.00030136,120]
[392903955,1762119796215,482.65215543,0.00030136,120]
[392903956,1762119796311,500.0,0.00030136,120]
[392903957,1762119799403,684.19,0.00030136,120]
[392903958,1762119799514,500.0,0.00030136,120]
[392903959,1762119800358,500.0,0.00030136,120]
[392903960,1762119801165,500.0,0.00030136,120]
[392903961,1762119803560,500.0,0.00030136,120]
[392903962,1762119803992,351.092652,0.0002585,120]
[392903963,1762119805488,500.0,0.00030136,120]
[392903964,1762119807115,500.0,0.00030136,120]
[392903965,1762119808215,500.0,0.00030136,120]
[392903966,1762119809698,500.0,0.00030136,120]
[392903967,1762119809852,500.0,0.00030136,120]
[392903968,1762119810137,849.91,0.00030136,120]
[392903969,1762119811546,2299.60808433,0.00013934,2]
[392903970,1762119811571,6155.50191567,0.00013934,2]
[392903971,1762119812293,500.0,0.00030136,120]
[392903972,1762119814651,1146.61,0.00030136,120]
[392903973,1762119814766,500.0,0.00030136,120]
[392903974,1762119815192,500.0,0.00030136,120]
[392903975,1762119815447,500.0,0.00030136,120]
[392903976,1762119817536,500.0,0.00030136,120]
[392903977,1762119817937,405.23043435,0.00030136,120]
[392903978,1762119818006,500.0,0.00030136,120]
[392903979,1762119819349,500.0,0.00030136,120]
[392903980,1762119819840,500.0,0.00030136,120]
[392903981,1762119822033,500.0,0.00030136,120]
[392903982,1762119823308,500.0,0.00030136,120]
[392903983,1762119825152,500.0,0.00030136,120]
[392903984,1762119825517,549.16186653,0.00030136,120]
[392903985,1762119826052,563.21,0.00030136,120]
[392903986,1762119826414,609.49,0.00030136,120]
[392903987,1762119826685,500.0,0.00030136,120]
[392903988,1762119827034,500.0,0.00030136,120]
[392903989,1762119827172,3844.50808433,0.00013934,2]
[392903990,1762119827198,342.65191567,0.00013934,2]
[392903991,1762119828712,500.0,0.00030136,120]
[392903992,1762119828994,500.0,0.00030136,120]
[392903993,1762119831707,500.0,0.00030136,120]
[392903994,1762119831781,500.0,0.00030136,120]
[392903995,1762119832054,500.0,0.00030136,120]
[392903996,1762119832479,602.66,0.00030136,120]
[392903997,1762119832997,903.26,0.00030136,120]
[392903998,1762119835406,500.0,0.00030136,120]
[392903999,1762119835795,247.63410393,0.00030136,120]
[392904000,1762119835963,500.0,0.00030136,120]
[392904001,1762119837824,500.0,0.00030136,120]
[392904002,1762119837897,500.0,0.00030136,120]
[392904003,1762119838013,500.0,0.00030136,120]
[392904004,1762119839556,500.0,0.00030136,120]
[392904005,1762119841807,500.0,0.00030136,120]
[392904006,1762119842499,500.0,0.00030136,120]
[392904007,1762119842835,500.0,0.00030136,120]
[392904008,1762119844000,500.0,0.00030136,120]
[392904009,1762119846918,500.0,0.00030136,120]
[392904010,1762119847258,500.0,0.00030136,120]
[392904011,1762119847831,500.0,0.00030136,120]
[392904012,1762119848418,500.0,0.00030136,120]
[392904013,1762119852885,500.0,0.00030136,120]
[392904014,1762119853002,731.63,0.00030136,120]
[392904015,1762119853103,500.0,0.00030136,120]
[392904016,1762119853280,-261.58335658,0.0001452,2]
[392904017,1762119853647,500.0,0.00030136,120]
[392904018,1762119853816,587.57,0.00030136,120]
[392904019,1762119854020,500.0,0.00030136,120]
[392904020,1762119856306,534.22998707,0.00030136,120]
[392904021,1762119857256,500.0,0.00030136,120]
[392904022,1762119858148,731.95,0.00030136,120]
[392904023,1762119858336,577.49439561,0.00030136,120]
[392904024,1762119858419,500.0,0.00030136,120]
[392904025,1762119860099,166.67207803,0.00030136,120]
[392904026,1762119861900,500.0,0.00030136,120]
[392904027,1762119863439,607.09,0.00030136,120]
[392904028,1762119865201,500.0,0.00030136,120]
[392904029,1762119867466,500.0,0.00030136,120]
[392904030,1762119868392,692.33,0.00030136,120]
[392904031,1762119868860,500.89623535,0.00030136,120]
[392904032,1762119868988,500.0,0.00030136,120]
[392904033,1762119869721,500.0,0.00030136,120]
[392904034,1762119870889,500.0,0.00030136,120]
[392904036,1762119871093,853.51,0.00030136,120]
[392904037,1762119872327,658.96,0.00030136,120]
[392904038,1762119872647,521.56,0.00030136,120]
[392904039,1762119873580,500.0,0.00030136,120]
[392904040,1762119875780,500.0,0.00030136,120]
[392904041,1762119876215,500.0,0.00030136,120]
[392904043,1762119876521,500.0,0.00030136,120]
[392904044,1762119879421,500.0,0.00030136,120]
[392904045,1762119880235,630.0590035,0.00030136,120]
[392904046,1762119882209,812.16,0.00030136,120]
[392904047,1762119882315,500.0,0.00030136,120]
[392904048,1762119883066,500.0,0.00030136,120]
[392904049,1762119883501,500.0,0.00030136,120]
[392904050,1762119885950,500.0,0.00030136,120]
[392904051,1762119888424,500.0,0.00030136,120]
[392904052,1762119888653,500.0,0.00030136,120]
[392904053,1762119889098,500.0,0.00030136,120]
[392904054,1762119889379,500.0,0.00030136,120]
[392904055,1762119889629,500.0,0.00030136,120]
[392904056,1762119890246,500.0,0.00030136,120]
[392904057,1762119890545,500.0,0.00030136,120]
[392904058,1762119891464,500.0,0.00030136,120]
[392904059,1762119892167,648.1867769,0.00030136,120]
[392904060,1762119892264,500.0,0.00030136,120]
[392904061,1762119895294,500.0,0.00030136,120]
[392904062,1762119897952,500.0,0.00030136,120]
[392904063,1762119898079,500.0,0.00030136,120]
[392904064,1762119898349,500.0,0.00030136,120]
[392904065,1762119898871,500.0,0.00030136,120]
[392904066,1762119900031,500.0,0.00030136,120]
[392904067,1762119900108,623.88,0.00030136,120]
[392904072,1762119902823,500.0,0.00030136,120]
[392904073,1762119905840,500.0,0.00030136,120]
[392904074,1762119907649,150.0,0.00013488,2]
[392904075,1762119908142,500.0,0.00030136,120]
[392904077,1762119908586,-129.29674342,0.0001452,2]
[392904078,1762119908608,-203.28221121,0.00014523,2]
[392904080,1762119909389,539.0962203,0.00030136,120]
[392904081,1762119909550,500.0,0.00030136,120]
[392904082,1762119909723,500.0,0.00030136,120]
[392904084,1762119910390,500.0,0.00030136,120]
[392904086,1762119911379,500.0,0.00030136,120]
[392904087,1762119911956,582.23,0.00030136,120]
[392904088,1762119913407,534.11112445,0.00030136,120]
[392904089,1762119914383,150.0,0.00013488,2]
[392904090,1762119914509,150.0,0.00013488,2]
[392904091,1762119914544,150.0,0.00013488,2]
[392904092,1762119915660,500.0,0.00030136,120]
[392904093,1762119915778,500.0,0.00030136,120]
[392904094,1762119918110,500.0,0.00030136,120]
[392904095,1762119918433,500.0,0.00030136,120]
[392904096,1762119919169,385.81764235,0.00030136,120]
[392904097,1762119921648,343.05,0.00013948,2]
[392904099,1762119922601,500.0,0.00030136,120]
[392904100,1762119923572,500.0,0.00030136,120]
[392904101,1762119924847,500.0,0.00030136,120]
[392904102,1762119925390,513.921987,0.0001445,2]
[392904103,1762119925973,500.0,0.00030136,120]
[392904104,1762119926183,732.65,0.00030136,120]
[392904105,1762119927032,500.0,0.00030136,120]
[392904106,1762119927756,150.0,0.00013488,2]
[392904107,1762119927872,588.19,0.00030136,120]
[392904108,1762119927911,150.0,0.00013488,2]
[392904109,1762119928611,500.0,0.00030136,120]
[392904110,1762119929488,150.0,0.00013488,2]
[392904111,1762119930798,2751.0,0.00013948,2]
[392904112,1762119931837,500.0,0.00030136,120]
[392904113,1762119931915,388.55738845,0.00030136,120]
[392904114,1762119934298,514.72,0.00030136,120]
[392904115,1762119934389,500.0,0.00030136,120]
[392904116,1762119934583,500.0,0.00030136,120]
[392904117,1762119935006,500.0,0.00030136,120]
[392904118,1762119935839,500.0,0.00030136,120]
[392904119,1762119936301,500.0,0.00030136,120]
[392904120,1762119936555,500.0,0.00030136,120]
[392904121,1762119937099,500.0,0.00030136,120]
[392904122,1762119937433,597.04,0.00030136,120]
[392904123,1762119939963,500.0,0.00030136,120]
[392904124,1762119942220,946.25,0.00030136,120]
[392904125,1762119942397,500.0,0.00030136,120]
[392904126,1762119943322,500.0,0.00030136,120]
[392904127,1762119943839,500.0,0.00030136,120]
[392904128,1762119944318,500.0,0.00030136,120]
[392904129,1762119945083,500.0,0.00030136,120]
[392904130,1762119946401,590.0,0.00030136,120]
[392904131,1762119946985,500.0,0.00030136,120]
[392904132,1762119948629,500.0,0.00030136,120]
[392904133,1762119948701,500.0,0.00030136,120]
[392904134,1762119948804,500.0,0.00030136,120]
[392904135,1762119950314,500.0,0.00030136,120]
[392904136,1762119951070,500.0,0.00030136,120]
[392904137,1762119951713,500.0,0.00030136,120]
[392904138,1762119952868,500.0,0.00030136,120]
[392904139,1762119952941,500.0,0.00030136,120]
[392904140,1762119953883,500.0,0.00030136,120]
[392904141,1762119956093,578.89,0.00030136,120]
[392904142,1762119956169,500.0,0.00030136,120]
[392904143,1762119956488,608.29,0.00030136,120]
[392904144,1762119958606,545.46,0.00030136,120]
[392904145,1762119958710,500.0,0.00030136,120]
[392904146,1762119959530,500.0,0.00030136,120]
[392904147,1762119959623,388.94990345,0.00030136,120]
[392904148,1762119959702,500.0,0.00030136,120]
[392904149,1762119959920,500.0,0.00030136,120]
[392904150,1762119961611,500.0,0.00030136,120]
[392904151,1762119962074,500.0,0.00030136,120]
[392904153,1762119962349,500.0,0.00030136,120]
[392904154,1762119963001,500.0,0.00030136,120]
[392904155,1762119963073,500.0,0.00030136,120]
[392904156,1762119965219,195.14447379,0.00030136,120]
[392904157,1762119965393,500.0,0.00030136,120]
[392904158,1762119967204,590.05,0.00030136,120]
[392904159,1762119967817,500.0,0.00030136,120]
[392904160,1762119967904,577.13,0.00030136,120]
[392904161,1762119968161,1000.0,0.00030136,120]
[392904162,1762119969096,500.0,0.00030136,120]
[392904163,1762119969382,500.0,0.00030136,120]
[392904164,1762119969799,500.0,0.00030136,120]
[392904165,1762119971530,600.00522301,0.00030136,120]
[392904166,1762119971938,500.0,0.00030136,120]
[392904167,1762119972662,500.0,0.00030136,120]
[392904168,1762119973119,500.0,0.00030136,120]
[392904169,1762119973228,500.0,0.00030136,120]
[392904170,1762119973304,500.0,0.00030136,120]
[392904171,1762119973519,500.0,0.00030136,120]
[392904172,1762119974290,500.0,0.00030136,120]
[392904173,1762119974927,500.0,0.00030136,120]
[392904174,1762119975916,500.0,0.00030136,120]
[392904175,1762119975995,534.00384387,0.00030136,120]
[392904176,1762119977650,500.0,0.00030136,120]
[392904177,1762119978362,500.0,0.00030136,120]
[392904178,1762119978466,608.91,0.00030136,120]
[392904179,1762119979272,500.0,0.00030136,120]
[392904180,1762119979345,13176.65505661,0.0003,120]
[392904181,1762119979936,500.0,0.00030136,120]
[392904182,1762119980019,500.0,0.00030136,120]
[392904185,1762119981928,500.0,0.00030136,120]
[392904187,1762119982021,500.0,0.00030136,120]
[392904188,1762119982098,500.0,0.00030136,120]
[392904217,1762119983826,500.0,0.00030136,120]
[392904225,1762119985113,500.0,0.00030136,120]
[392904233,1762119985887,363.81220423,0.00030136,120]
[392904234,1762119986826,500.0,0.00030136,120]
[392904235,1762119987294,500.0,0.00030136,120]
[392904236,1762119987481,457.88730735,0.00030136,120]
[392904237,1762119987688,500.0,0.00030136,120]
[392904242,1762119989086,500.0,0.00030136,120]
[392904243,1762119989163,500.0,0.00030136,120]
[392904244,1762119990945,500.0,0.00030136,120]
[392904247,1762119991401,535.48562856,0.00030136,120]
[392904248,1762119991482,500.0,0.00030136,120]
[392904250,1762119994059,538.54419659,0.00030136,120]
[392904252,1762119994188,500.0,0.00030136,120]
[392904254,1762119994543,500.0,0.00030136,120]
[392904255,1762119995488,500.0,0.00030136,120]
[392904256,1762119995818,500.0,0.00030136,120]
[392904257,1762119997137,500.0,0.00030136,120]
[392904262,1762119998105,500.0,0.00030136,120]
[392904263,1762119998178,436.04527199,0.00030136,120]
[392904264,1762119998451,500.0,0.00030136,120]
[392904265,1762119999048,500.0,0.00030136,120]
[392904266,1762119999674,569.69,0.00030136,120]
[392904267,1762120000034,500.0,0.00030136,120]
[392904268,1762120000632,203.66,0.00013971,2]
[392904269,1762120002611,500.0,0.00030136,120]
[392904270,1762120003712,500.0,0.00030136,120]
[392904271,1762120004229,500.0,0.00030136,120]
[392904272,1762120005105,500.0,0.00030136,120]
[392904273,1762120007030,929.64,0.00030136,120]
[392904274,1762120007230,500.0,0.00030136,120]
[392904275,1762120009215,500.0,0.00030136,120]
[392904276,1762120009667,563.45,0.00030136,120]